{"text_format":"1","workbook":"xlsx","n_sheets":3,"sheets":["الرئيسية","الوارد","الصادر"],"not_rendered":{"charts":0,"images":0,"macros":1,"external_links":0,"defined_names":2,"comments":0,"pivot_tables":0},"unopened":[],"bounds":{"document_bytes":16777216,"sheet_cells":100000,"rows_first":2000,"rows_last":500,"rows_between":2000,"halvings":0,"cell_chars":16384,"cell_head_chars":4096},"cells_cut":0,"cells_raw":0,"read":"whole","date_system":"1900"}

{"sheet":"الرئيسية","index":0,"n_rows":2,"n_cols":2,"rows_kept":2,"cut":false,"hidden":false,"merged":[[1,1,2,3]]}
[]
[null,{"$f":"NOW()","v":"2018-08-13T15:40:00.400"}]

{"sheet":"الوارد","index":1,"n_rows":19,"n_cols":6,"rows_kept":19,"cut":false,"hidden":false,"merged":[]}
[]
["م","الموضوع","وارد من","التاريخ","مسار الخطاب","فتح الخطاب"]
["1",null,null,null,null,{"$f":"HYPERLINK(Table22[[#This Row],[مسار الخطاب]],\"go\")","v":"go"}]
["2",null,null,null,null,{"$f":"HYPERLINK(Table22[[#This Row],[مسار الخطاب]],\"go\")","v":"go"}]
["3",null,null,null,null,{"$f":"HYPERLINK(Table22[[#This Row],[مسار الخطاب]],\"go\")","v":"go"}]
["4",null,null,null,null,{"$f":"HYPERLINK(Table22[[#This Row],[مسار الخطاب]],\"go\")","v":"go"}]
["5",null,null,null,null,{"$f":"HYPERLINK(Table22[[#This Row],[مسار الخطاب]],\"go\")","v":"go"}]
["6",null,null,null,null,{"$f":"HYPERLINK(Table22[[#This Row],[مسار الخطاب]],\"go\")","v":"go"}]
["7",null,null,null,null,{"$f":"HYPERLINK(Table22[[#This Row],[مسار الخطاب]],\"go\")","v":"go"}]
["8",null,null,null,null,{"$f":"HYPERLINK(Table22[[#This Row],[مسار الخطاب]],\"go\")","v":"go"}]
["9",null,null,null,null,{"$f":"HYPERLINK(Table22[[#This Row],[مسار الخطاب]],\"go\")","v":"go"}]
["10",null,null,null,null,{"$f":"HYPERLINK(Table22[[#This Row],[مسار الخطاب]],\"go\")","v":"go"}]
["11",null,null,null,null,{"$f":"HYPERLINK(Table22[[#This Row],[مسار الخطاب]],\"go\")","v":"go"}]
["12",null,null,null,null,{"$f":"HYPERLINK(Table22[[#This Row],[مسار الخطاب]],\"go\")","v":"go"}]
["13",null,null,null,null,{"$f":"HYPERLINK(Table22[[#This Row],[مسار الخطاب]],\"go\")","v":"go"}]
["14",null,null,null,null,{"$f":"HYPERLINK(Table22[[#This Row],[مسار الخطاب]],\"go\")","v":"go"}]
["15",null,null,null,null,{"$f":"HYPERLINK(Table22[[#This Row],[مسار الخطاب]],\"go\")","v":"go"}]
["16",null,null,null,null,{"$f":"HYPERLINK(Table22[[#This Row],[مسار الخطاب]],\"go\")","v":"go"}]
["17",null,null,null,null,{"$f":"HYPERLINK(Table22[[#This Row],[مسار الخطاب]],\"go\")","v":"go"}]

{"sheet":"الصادر","index":2,"n_rows":19,"n_cols":6,"rows_kept":19,"cut":false,"hidden":false,"merged":[]}
[]
["م","الموضوع","صادر الى","التاريخ","مسار الخطاب","فتح الخطاب"]
["1",null,null,null,null,{"$f":"HYPERLINK(Table2[[#This Row],[مسار الخطاب]],\"go\")","v":"go"}]
["2",null,null,null,null,{"$f":"HYPERLINK(Table2[[#This Row],[مسار الخطاب]],\"go\")","v":"go"}]
["3",null,null,null,null,{"$f":"HYPERLINK(Table2[[#This Row],[مسار الخطاب]],\"go\")","v":"go"}]
["4",null,null,null,null,{"$f":"HYPERLINK(Table2[[#This Row],[مسار الخطاب]],\"go\")","v":"go"}]
["5",null,null,null,null,{"$f":"HYPERLINK(Table2[[#This Row],[مسار الخطاب]],\"go\")","v":"go"}]
["6",null,null,null,null,{"$f":"HYPERLINK(Table2[[#This Row],[مسار الخطاب]],\"go\")","v":"go"}]
["7",null,null,null,null,{"$f":"HYPERLINK(Table2[[#This Row],[مسار الخطاب]],\"go\")","v":"go"}]
["8",null,null,null,null,{"$f":"HYPERLINK(Table2[[#This Row],[مسار الخطاب]],\"go\")","v":"go"}]
["9",null,null,null,null,{"$f":"HYPERLINK(Table2[[#This Row],[مسار الخطاب]],\"go\")","v":"go"}]
["10",null,null,null,null,{"$f":"HYPERLINK(Table2[[#This Row],[مسار الخطاب]],\"go\")","v":"go"}]
["11",null,null,null,null,{"$f":"HYPERLINK(Table2[[#This Row],[مسار الخطاب]],\"go\")","v":"go"}]
["12",null,null,null,null,{"$f":"HYPERLINK(Table2[[#This Row],[مسار الخطاب]],\"go\")","v":"go"}]
["13",null,null,null,null,{"$f":"HYPERLINK(Table2[[#This Row],[مسار الخطاب]],\"go\")","v":"go"}]
["14",null,null,null,null,{"$f":"HYPERLINK(Table2[[#This Row],[مسار الخطاب]],\"go\")","v":"go"}]
["15",null,null,null,null,{"$f":"HYPERLINK(Table2[[#This Row],[مسار الخطاب]],\"go\")","v":"go"}]
["16",null,null,null,null,{"$f":"HYPERLINK(Table2[[#This Row],[مسار الخطاب]],\"go\")","v":"go"}]
["17",null,null,null,null,{"$f":"HYPERLINK(Table2[[#This Row],[مسار الخطاب]],\"go\")","v":"go"}]